bitfinex-derivatives/quotes_SOLF0:USTF0_20250206
["timestamp","ask_amount","ask_price","bid_price","bid_amount"]
[1738851470518,35.70439924,198.31,198.21,3.1107]
[1738851470720,35.70439924,198.28,198.18,55.1066955]
[1738851470915,35.70439924,198.25,198.18,60.1512955]
[1738851471118,35.70439924,198.28,198.18,55.1066955]
[1738851471320,35.70439924,198.31,198.21,0.03819916]
[1738851471627,0.03592863,198.25,198.21,0.03819916]
[1738851471815,0.03592863,198.25,198.18,55.1066955]
[1738851472017,5.0411,198.32,198.25,5.0426]
[1738851472422,0.0321088,198.23,198.18,55.1066955]
[1738851472618,190.0,198.45,198.18,60.14309384]
[1738851472824,35.70439924,198.31,198.27,0.03804577]
[1738851473320,35.70439924,198.34,198.18,60.14309384]
[1738851473520,35.70439924,198.34,198.19,55.1066955]
[1738851473925,0.03629264,198.28,198.24,0.03726933]
[1738851474527,5.07839264,198.28,198.24,0.03726933]
[1738851474727,0.03629264,198.28,198.24,0.03726933]
[1738851475320,5.0425,198.27,198.24,0.03726933]
[1738851475827,0.03629264,198.28,198.24,0.03726933]
[1738851476628,5.0423,198.27,198.24,0.03726933]
[1738851476928,0.03629264,198.28,198.24,0.03726933]
[1738851477929,0.03629264,198.28,198.26,5.0426]
[1738851478125,0.03629264,198.28,198.24,0.03726933]
[1738851478632,35.70439924,198.4,198.24,0.03726933]
[1738851479124,35.70439924,198.4,198.24,3.0337]
[1738851479326,35.70439924,198.36,198.24,3.0337]
[1738851479529,35.70439924,198.32,198.23,55.1066955]
[1738851479832,35.70439924,198.29,198.28,3.449e-05]
[1738851480230,40.74619924,198.29,198.28,3.449e-05]
[1738851480535,35.70439924,198.3,198.28,3.449e-05]
[1738851480730,5.0418,198.29,198.28,3.449e-05]
[1738851482032,5.044,198.21,198.18,55.1066955]
[1738851482335,35.70439924,198.25,198.18,55.1066955]
[1738851482931,35.70439924,198.21,198.18,55.1066955]
[1738851483131,5.0444,198.19,198.18,55.1066955]
[1738851483332,5.0444,198.19,198.18,47.6765955]
[1738851483635,5.0444,198.19,198.18,47.71195069]
[1738851483935,5.0444,198.19,198.18,32.44845069]
[1738851484130,5.045,198.17,198.09,82.80632345]
[1738851484435,35.70439924,198.21,198.13,5.0459]
[1738851484737,5.0447,198.18,198.09,82.80632345]
[1738851485131,5.0442,198.2,198.09,82.80632345]
[1738851485337,0.03553147,198.15,198.12,0.03650001]
[1738851487333,0.03553147,198.15,198.13,5.0459]
[1738851487535,0.03553147,198.15,198.12,0.03650001]
[1738851489138,5.08093147,198.15,198.12,0.03650001]
[1738851489339,0.03553147,198.15,198.12,0.03650001]
[1738851490739,5.08113147,198.15,198.12,0.03650001]
[1738851491134,0.03553147,198.15,198.12,0.03650001]
[1738851491335,5.08093147,198.15,198.12,0.03650001]
[1738851492141,5.0456,198.14,198.12,0.03650001]
[1738851492339,0.03553147,198.15,198.12,0.03650001]
[1738851492639,5.08093147,198.15,198.12,0.03650001]
[1738851493144,0.03553147,198.15,198.12,0.03650001]
[1738851493446,35.70439924,198.13,198.12,0.03650001]
[1738851493743,0.03553147,198.15,198.12,0.03650001]
[1738851494635,5.08093147,198.15,198.12,0.03650001]
[1738851495239,0.03553147,198.15,198.12,0.03650001]
[1738851495844,0.03553147,198.15,198.12,5.08260001]
[1738851496141,0.03553147,198.15,198.12,0.03650001]
[1738851496338,0.03553147,198.15,198.13,5.0459]
[1738851496643,0.03553147,198.15,198.12,0.03650001]
[1738851502144,22.01490413,198.22,198.12,0.03650001]
[1738851502438,27.05850413,198.22,198.15,5.0454]
[1738851502643,22.01490413,198.22,198.06,25.55400185]
[1738851502941,22.01490413,198.19,198.06,25.55400185]
[1738851503443,0.03875091,198.14,198.11,0.03537031]
[1738851503642,22.01490413,198.22,198.11,0.03537031]
[1738851503841,5.0441,198.21,198.14,5.0456]
[1738851504043,22.01490413,198.25,198.07,42.90234409]
[1738851504442,5.0432,198.24,198.17,5.0446]
[1738851504739,0.03675289,198.22,198.19,0.03784975]
[1738851504935,22.01490413,198.25,198.07,42.90234409]
[1738851505342,0.03755221,198.22,198.19,0.03381407]
[1738851505639,22.01490413,198.28,198.11,1.5254]
[1738851506236,22.01490413,198.22,198.11,1.5254]
[1738851506435,22.01490413,198.19,198.11,1.5254]
[1738851506846,0.03800516,198.18,198.15,0.03306265]
[1738851507250,5.08270516,198.18,198.15,0.03306265]
[1738851507548,22.01490413,198.16,198.15,0.03306265]
[1738851507942,5.0454,198.15,198.1,20.88743996]
[1738851508842,5.0454,198.15,198.07,84.38872345]
[1738851509148,5.0454,198.15,198.11,0.03445291]
[1738851509543,0.03644068,198.13,198.11,0.03445291]
[1738851509744,22.01490413,198.12,198.03,20.88743996]
[1738851510043,22.01490413,198.09,198.03,20.88743996]
[1738851510238,22.05134481,198.13,198.03,20.88743996]
[1738851510439,22.01490413,198.13,198.06,5.0476]
[1738851510946,5.0466,198.11,198.04,1.5719]
[1738851511148,22.01490413,198.09,198.08,0.03327651]
[1738851511343,22.01490413,198.09,198.03,20.88743996]
[1738851511538,22.01490413,198.06,198.03,20.88743996]
[1738851512448,22.01490413,198.06,198.01,25.56085207]
[1738851512653,22.05271918,198.06,198.03,0.03840799]
[1738851512952,5.0479,198.05,198.03,0.03840799]
[1738851513148,22.05271918,198.06,198.03,0.03840799]
[1738851514152,5.0482,198.04,198.03,0.03840799]
[1738851514657,22.05271918,198.06,198.01,25.56085207]
[1738851514953,5.0487,198.02,197.96,1.5003]
[1738851515155,5.0487,198.02,197.96,8.48032493]
[1738851515353,5.0485,198.03,197.97,5.0499]
[1738851515748,22.01490413,198.06,197.96,8.48032493]
[1738851515945,22.01490413,197.99,197.98,0.03694245]
[1738851516250,22.01490413,197.99,197.95,20.88743996]
[1738851516452,22.01490413,197.99,197.94,55.7265321]
[1738851516653,22.01490413,197.95,197.94,55.7265321]
[1738851516842,22.01490413,197.95,197.93,23.12819737]
[1738851517247,22.01490413,197.95,197.93,6.48299737]
[1738851517452,22.01490413,197.95,197.93,8.938e-05]
[1738851517453,5.0507,197.94,197.93,8.938e-05]
[1738851517751,0.03536911,197.96,197.93,8.938e-05]
[1738851517951,0.03536911,197.96,197.93,5.05078938]
[1738851518157,0.03536911,197.96,197.93,8.938e-05]
[1738851518743,0.03536911,197.96,197.92,3.07380869]
[1738851519151,35.82074528,198.07,197.92,3.07380869]
[1738851519551,35.82074528,198.04,197.92,3.0354]
[1738851519750,35.82074528,198.0,197.92,3.0354]
[1738851520243,5.0826857,197.98,197.94,0.03225568]
[1738851520645,0.0329857,197.98,197.94,0.03225568]
[1738851520853,5.0505,197.95,197.94,0.03225568]
[1738851521049,35.82074528,197.94,197.87,5.0523]
[1738851521352,5.0515,197.91,197.85,0.20339]
[1738851521652,35.82074528,197.94,197.85,0.20339]
[1738851521843,35.82074528,198.0,197.85,0.20339]
[1738851522244,0.03219615,197.94,197.91,0.03759694]
[1738851523456,35.85294143,197.94,197.91,0.03759694]
[1738851524559,5.0512,197.92,197.91,0.03759694]
[1738851525356,40.90374143,197.94,197.91,0.03759694]
[1738851525555,0.03219615,197.94,197.91,0.03759694]
[1738851528160,5.0512,197.92,197.91,0.03759694]
[1738851529665,5.051,197.93,197.91,0.03759694]
[1738851529852,0.03219615,197.94,197.91,0.03759694]
[1738851530357,225.82074528,198.03,197.91,0.03759694]
[1738851530558,5.0489,198.02,197.91,0.03759694]
[1738851530860,20.4721217,198.05,197.89,1.5253]
[1738851531263,20.4721217,198.04,197.89,1.5253]
[1738851531558,0.03204048,197.98,197.95,0.03752429]
[1738851531860,20.4721217,198.04,197.95,0.03752429]
[1738851532555,20.4721217,198.04,198.03,5.0484]
[1738851532856,54.59232455,198.05,197.96,35.82074528]
[1738851532857,35.59492791,198.05,197.96,35.82074528]
[1738851533051,14.11652455,198.05,198.02,0.03561646]
[1738851533258,81.88848683,198.07,198.06,5.0477]
[1738851533653,81.88848683,198.07,198.02,0.03561646]
[1738851534165,35.82074528,198.05,198.02,0.03561646]
[1738851534958,35.85816311,198.08,198.02,0.03561646]
[1738851535265,0.03741783,198.08,198.02,0.03561646]
[1738851536758,35.85816311,198.08,198.02,0.03561646]
[1738851536960,35.82074528,198.05,198.02,0.03561646]
[1738851537362,35.82074528,198.05,197.98,0.18374]
[1738851537666,5.0484,198.03,197.98,0.18374]
[1738851538165,40.86894528,198.05,197.98,0.18374]
[1738851538461,35.82074528,198.02,197.98,0.18374]
[1738851538658,5.0489,198.01,198.0,0.03355169]
[1738851539162,22.04634584,198.02,197.98,0.18374]
[1738851539364,22.04634584,197.99,197.81,192.0]
[1738851539761,22.04634584,198.02,197.81,192.0]
[1738851540061,22.04634584,198.02,197.86,22.04634584]
[1738851540367,0.03300999,197.93,197.9,0.03609784]
[1738851540664,22.04634584,198.02,197.86,22.04634584]
[1738851540855,0.03373632,197.93,197.92,5.0511]
[1738851541057,22.04634584,198.02,197.86,22.04634584]
[1738851541263,22.04634584,198.02,197.91,0.03530293]
[1738851541564,1.4909,198.08,197.92,22.04634584]
[1738851541962,5.0464,198.12,197.96,22.04634584]
[1738851542164,22.04634584,198.16,197.99,22.04634584]
[1738851542463,3.317e-05,198.06,198.05,5.0479]
[1738851542662,3.317e-05,198.06,198.05,27.09424584]
[1738851542964,81.88848683,198.2,198.03,0.2533]
[1738851543166,81.88848683,198.2,198.09,22.04634584]
[1738851543662,81.88848683,198.2,198.19,5.0444]
[1738851544260,81.88848683,198.2,198.18,0.03890557]
[1738851544667,81.88848683,198.2,198.05,6.08]
[1738851544963,35.79116211,198.21,198.17,0.03240359]
[1738851544964,35.75546924,198.21,198.17,0.03240359]
[1738851545154,35.75546924,198.21,198.05,6.08]
[1738851545355,9.386e-05,198.14,198.08,35.75546924]
[1738851545555,9.386e-05,198.14,198.05,41.83546924]
[1738851545765,9.386e-05,198.14,198.03,0.2533]
[1738851546154,9.386e-05,198.14,198.07,5.0473]
[1738851546356,9.386e-05,198.14,198.03,0.2533]
[1738851546560,9.386e-05,198.14,198.09,0.03292297]
[1738851547262,5.0459,198.13,198.09,0.03292297]
[1738851547460,1.5664,198.12,197.96,36.00606924]
[1738851547856,35.75546924,198.07,197.93,35.75546924]
[1738851548060,35.75546924,198.07,197.9,91.31597077]
[1738851548464,40.80286924,198.07,197.9,35.75546924]
[1738851548667,0.03408054,198.0,197.97,0.03222425]
[1738851548965,35.75546924,198.07,198.02,5.0487]
[1738851549157,35.75546924,198.11,198.02,5.0487]
[1738851549362,35.75546924,198.11,197.94,35.75546924]
[1738851549563,5.0469,198.09,197.94,35.75546924]
[1738851549762,35.75546924,198.08,197.91,35.75546924]
[1738851549962,5.0484,198.03,197.95,5.0503]
[1738851550160,1.5251,198.02,198.0,0.03345322]
[1738851550363,1.5251,198.02,197.88,35.75546924]
[1738851550567,6.5738,198.02,197.94,5.0507]
[1738851550960,6.5738,198.02,197.88,35.75546924]
[1738851551161,6.5738,198.02,197.95,5.0505]
[1738851551669,0.03668906,198.0,197.98,5.0497]
[1738851551865,0.03668906,198.0,197.97,0.03272491]
[1738851552069,0.03668906,198.0,197.92,35.75546924]
[1738851552362,0.03668906,198.0,197.97,0.03397792]
[1738851552768,5.0482,198.04,197.89,35.75546924]
[1738851552965,0.03867199,198.0,197.97,0.03470551]
[1738851553565,7.199e-05,198.0,197.97,0.03470551]
[1738851553767,7.199e-05,198.0,197.99,5.0494]
[1738851554166,7.199e-05,198.0,197.97,0.03470551]
[1738851554961,7.199e-05,198.0,197.99,5.0494]
[1738851559067,1.5199,198.15,198.1,5.0465]
[1738851559267,1.5199,198.15,198.02,35.75546924]
[1738851559868,1.5199,198.15,197.98,36.07386924]
[1738851560166,5.0467,198.1,198.03,5.0484]
[1738851560373,0.03532491,198.08,198.05,0.03810447]
[1738851560671,1.5199,198.15,198.05,0.03810447]
[1738851560872,0.03767073,198.08,198.05,0.03810447]
[1738851561067,1.5199,198.15,198.05,0.03810447]
[1738851561270,0.03770623,198.08,198.05,0.03810447]
[1738851561571,1.5199,198.15,198.05,0.03810447]
[1738851561771,0.03249794,198.08,198.05,5.08600447]
[1738851561972,1.5199,198.15,198.05,0.03810447]
[1738851562173,0.03517427,198.08,198.05,0.03810447]
[1738851562372,1.5199,198.15,198.09,5.0468]
[1738851562373,6.5653,198.15,198.09,5.0468]
[1738851562569,1.5199,198.15,198.09,5.0468]
[1738851562772,0.0331363,198.14,198.09,5.0468]
[1738851562974,0.0331363,198.14,198.1,0.03412785]
[1738851563368,5.0456,198.14,198.02,35.75546924]
[1738851563564,5.07834131,198.14,198.1,0.03584234]
[1738851563771,5.0456,198.14,198.02,35.75546924]
[1738851563970,5.0456,198.14,198.1,0.03382794]
[1738851564170,0.03303202,198.14,198.1,0.03382794]
[1738851564379,0.03303202,198.14,198.08,5.0471]
[1738851564566,0.03303202,198.14,198.1,0.03345287]
[1738851564772,0.03303202,198.14,197.98,36.07386924]
[1738851565070,1.5199,198.15,198.02,35.75546924]
[1738851565774,1.5199,198.15,198.11,5.0463]
[1738851565973,0.03299317,198.1,198.07,0.03726451]
[1738851566174,1.5411,198.16,198.02,35.75546924]
[1738851566474,0.03668682,198.1,198.07,0.03212814]
[1738851566969,0.03668682,198.1,198.09,5.0469]
[1738851568574,0.03668682,198.1,198.07,5.07942814]
[1738851568974,0.03668682,198.1,198.07,0.03212814]
[1738851570063,5.047,198.09,198.07,0.03212814]
[1738851570462,0.03668682,198.1,197.94,22.00607276]
[1738851570672,22.00607276,198.08,197.94,22.00607276]
[1738851570865,1.6226,198.07,197.94,22.00607276]
[1738851571273,1.6226,198.07,197.97,22.00607276]
[1738851571465,1.5104,198.13,198.0,22.00607276]
[1738851571867,0.03678654,198.04,198.0,22.04012241]
[1738851572065,1.5104,198.13,198.0,22.00607276]
[1738851572264,5.0467,198.1,197.97,22.00607276]
[1738851572467,0.03488274,198.04,198.0,0.03645636]
[1738851575077,0.03488274,198.04,198.0,22.04252912]
[1738851576477,0.00288274,198.04,198.0,22.04252912]
[1738851576677,1.5104,198.13,198.0,22.04252912]
[1738851577074,1.6226,198.14,198.0,22.00607276]
[1738851577470,6.6685,198.14,198.0,22.00607276]
[1738851577675,1.6226,198.14,198.0,22.00607276]
[1738851577871,0.03430064,198.09,198.05,0.03520792]
[1738851578079,0.03430064,198.09,197.94,22.00607276]
[1738851578275,5.0481,198.05,197.94,22.00607276]
[1738851578581,1.6224,198.1,197.94,22.00607276]
[1738851579177,1.6224,198.1,198.0,0.03508861]
[1738851579178,0.03880525,198.04,198.0,0.03508861]
[1738851579378,5.08700525,198.04,198.0,0.03508861]
[1738851580179,0.03880525,198.04,198.0,0.03508861]
[1738851585578,5.08710525,198.04,198.0,0.03508861]
[1738851586486,0.03880525,198.04,198.0,0.03508861]
[1738851590091,0.03880525,198.04,198.0,22.04116137]
[1738851590588,0.03880525,198.04,198.0,0.03508861]
[1738851592789,5.08720525,198.04,198.0,0.03508861]
[1738851593087,0.03880525,198.04,198.0,0.03508861]
[1738851595489,5.0489,198.01,198.0,0.03508861]
[1738851596298,5.0495,197.99,197.89,0.35]
[1738851596593,3.1161,198.03,197.88,22.00607276]
[1738851597092,5.0497,197.99,197.88,22.00607276]
[1738851597292,3.1161,198.03,197.88,22.00607276]
[1738851597489,0.03299698,197.95,197.92,0.03713025]
[1738851597989,0.03758004,197.95,197.92,0.03713025]
[1738851601094,5.051,197.93,197.92,0.03713025]
[1738851601699,0.03758004,197.95,197.92,0.03713025]
[1738851606792,5.051,197.93,197.92,0.03713025]
[1738851607003,0.03758004,197.95,197.81,22.00607276]
[1738851607200,3.1046,197.94,197.81,22.00607276]
[1738851608005,5.051,197.93,197.81,22.00607276]
[1738851608205,0.03448599,197.89,197.86,0.03577054]
[1738851608604,0.03448599,197.89,197.87,22.00607276]
[1738851608806,3.0935,198.0,197.87,22.00607276]
[1738851609601,3.0935,198.0,197.9,22.00607276]
[1738851609905,0.03255423,197.97,197.93,0.03626142]
[1738851613907,3.1241,198.06,197.94,22.00607276]
[1738851615106,0.03712758,198.02,197.98,0.03883028]
[1738851628818,0.03712758,198.02,197.98,22.04490304]
[1738851629011,1.5669,198.11,197.99,5.2]
[1738851629217,1.5669,198.11,198.03,22.00607276]
[1738851629419,1.6339,198.16,198.03,22.00607276]
[1738851629720,8.2676,198.16,198.03,22.00607276]
[1738851630023,3.2225,198.16,198.03,22.00607276]
[1738851630224,3.2225,198.16,198.08,0.03732564]
[1738851630225,0.03762718,198.11,198.08,0.03732564]
[1738851632220,0.03762718,198.11,197.99,5.2]
[1738851632621,22.00607276,198.13,197.99,5.2]
[1738851632823,5.0466,198.11,197.99,27.20607276]
[1738851633021,25.22857276,198.16,197.99,27.20607276]
[1738851633418,5.0461,198.13,197.99,27.20607276]
[1738851633622,0.03562904,198.09,198.06,0.03442083]
[1738851635127,0.03562904,198.09,198.06,13.79048895]
[1738851637024,0.03562904,198.09,198.06,0.03442083]
[1738851637523,5.0474,198.08,198.06,0.03442083]
[1738851638025,0.03562904,198.09,198.06,0.03442083]
[1738851640724,5.08262904,198.09,198.06,0.03442083]
[1738851640925,0.03562904,198.09,198.0,13.75606812]
[1738851641429,5.0479,198.06,198.0,13.75606812]
[1738851641827,15.32016812,198.08,197.97,13.75606812]
[1738851642025,1.5188,198.05,197.94,13.75606812]
[1738851642228,5.0484,198.03,198.01,0.03878709]
[1738851644026,5.0487,198.02,198.01,0.03878709]
[1738851644231,0.03367044,198.04,197.94,13.75606812]
[1738851644630,15.27486812,198.05,197.94,13.75606812]
[1738851645231,5.0492,198.0,197.94,13.75606812]
[1738851645531,0.0388559,198.01,197.98,0.03229183]
[1738851645726,5.0495,197.99,197.91,13.75606812]
[1738851645932,13.75606812,198.02,197.91,13.75606812]
[1738851646124,13.75606812,198.02,197.98,0.03695788]
[1738851646521,13.79368283,198.02,197.85,99.96]
[1738851646725,13.79368283,198.02,197.88,13.75606812]
[1738851646931,13.75606812,198.02,197.88,13.75606812]
[1738851647127,5.0498,197.98,197.88,13.75606812]
[1738851647328,13.75606812,198.02,197.88,13.75606812]
[1738851647625,5.0507,197.95,197.88,13.75606812]
[1738851648132,5.0509,197.94,197.88,13.75606812]
[1738851648332,3.1806,197.96,197.88,13.75606812]
[1738851648632,0.03810256,197.93,197.88,13.75606812]
[1738851650230,5.08910256,197.93,197.88,13.75606812]
[1738851651634,0.03810256,197.93,197.88,13.75606812]
[1738851652340,0.03810256,197.93,197.91,13.75606812]
[1738851652737,1.5389,198.01,197.91,13.75606812]
[1738851652936,1.5389,198.01,197.94,13.75606812]
[1738851653134,0.03247004,197.98,197.94,13.75606812]
[1738851654337,0.03247004,197.98,197.97,13.75606812]
[1738851654537,3.1225,198.07,197.97,13.75606812]
[1738851654738,8.1699,198.07,197.97,13.75606812]
[1738851654939,3.1225,198.07,197.97,13.75606812]
[1738851655139,3.1225,198.07,198.0,13.75606812]
[1738851655639,5.0,198.22,198.0,13.75606812]
[1738851655640,5.0455,198.15,198.05,13.75606812]
[1738851655842,1.5404,198.17,198.05,13.75606812]
[1738851656140,0.03645971,198.12,198.05,13.75606812]
[1738851656343,5.08255971,198.12,198.09,0.03820362]
[1738851656638,0.03645971,198.12,198.09,0.03820362]
[1738851658744,5.0464,198.11,198.09,0.03820362]
[1738851658940,0.03645971,198.12,198.09,0.03820362]
[1738851659439,5.0466,198.1,198.09,0.03820362]
[1738851660043,5.0473,198.08,198.02,13.75606812]
[1738851660337,13.75606812,198.13,197.99,13.75606812]
[1738851660543,5.0474,198.08,197.99,13.75606812]
[1738851660844,13.75606812,198.13,197.99,13.75606812]
[1738851661041,5.0472,198.08,197.99,13.75606812]
[1738851661344,0.03776491,198.08,197.99,13.75606812]
[1738851661847,0.03776491,198.08,198.02,13.75606812]
[1738851662143,13.75606812,198.16,198.02,13.75606812]
[1738851662343,0.03754529,198.07,198.02,13.75606812]
[1738851662543,13.75606812,198.16,198.02,13.75606812]
[1738851662745,0.03792013,198.06,198.02,13.75606812]
[1738851663043,0.03238594,198.06,198.02,13.75606812]
[1738851663948,0.03238594,198.06,197.99,13.75606812]
[1738851664144,13.75606812,198.1,197.99,13.75606812]
[1738851664344,0.03615937,198.04,197.99,13.75606812]
[1738851664945,0.03615937,198.04,197.96,13.75606812]
[1738851665345,3.1819,198.08,197.96,13.75606812]
[1738851665546,0.03202403,198.02,197.96,13.75606812]
[1738851666643,0.03202403,198.02,197.93,13.75606812]
[1738851666849,13.75606812,198.07,197.93,13.75606812]
[1738851667045,0.03466517,197.99,197.93,13.75606812]
[1738851667946,5.08416517,197.99,197.93,13.75606812]
[1738851668442,5.05,197.97,197.9,13.75606812]
[1738851668846,0.03228197,197.95,197.9,13.75606812]
[1738851670044,0.03228197,197.95,197.93,13.75606812]
[1738851671049,0.03228197,197.95,197.86,0.4997]
[1738851671050,0.03228197,197.95,197.9,13.75606812]
[1738851672251,0.03228197,197.95,197.93,13.75606812]
[1738851672450,5.049,198.01,197.93,13.75606812]
[1738851672646,0.03206707,197.96,197.9,13.75606812]
[1738851672851,3.1089,198.06,197.95,13.75606812]
[1738851673248,0.03562414,198.02,197.89,13.75606812]
[1738851673550,13.75606812,198.03,197.89,13.75606812]
[1738851673741,5.08436534,197.97,197.89,13.75606812]
[1738851674143,0.03416534,197.97,197.89,13.75606812]
[1738851675251,5.0505,197.95,197.89,13.75606812]
[1738851675653,0.03416534,197.97,197.89,13.75606812]
[1738851675955,5.08436534,197.97,197.89,13.75606812]
[1738851676451,0.03416534,197.97,197.89,13.75606812]
[1738851676653,0.03416534,197.97,197.81,5.3803]
[1738851676955,16.86496812,198.06,197.92,13.75606812]
[1738851677259,0.03465103,198.01,197.95,13.75606812]
[1738851678754,0.03465103,198.01,197.92,13.75606812]
[1738851678954,0.03465103,198.01,197.98,13.75606812]
[1738851679655,1.507,198.09,197.98,13.75606812]
[1738851679857,16.93126812,198.12,198.01,13.75606812]
[1738851680257,5.0469,198.09,198.01,13.75606812]
[1738851680658,16.93126812,198.12,198.01,13.75606812]
[1738851680861,5.0475,198.07,198.01,13.75606812]
[1738851681058,0.03503146,198.07,198.03,0.03465103]
[1738851681258,16.93126812,198.12,197.98,13.75606812]
[1738851681663,0.03679812,198.07,198.03,0.03209017]
[1738851682260,5.0482,198.04,198.03,0.03209017]
[1738851683264,13.75606812,198.06,197.92,13.75606812]
[1738851683454,15.30896812,198.03,197.92,13.75606812]
[1738851683855,5.0495,197.99,197.92,13.75606812]
[1738851684061,15.30896812,198.03,197.92,13.75606812]
[1738851684263,0.03309916,197.97,197.92,13.75606812]
[1738851686163,0.03309916,197.97,197.89,13.75606812]
[1738851686361,5.0505,197.95,197.89,13.75606812]
[1738851686560,0.03283028,197.95,197.89,13.75606812]
[1738851687365,0.03283028,197.95,197.86,13.75606812]
[1738851687762,5.08343028,197.95,197.86,13.75606812]
[1738851688062,0.03283028,197.95,197.86,13.75606812]
[1738851688764,5.051,197.93,197.86,13.75606812]
[1738851689166,5.0507,197.94,197.86,13.75606812]
[1738851689664,0.03283028,197.95,197.92,13.75606812]
[1738851689865,1.5529,198.03,197.92,13.75606812]
[1738851690064,0.035908,197.95,197.92,13.75606812]
[1738851690366,5.0492,198.0,197.92,13.75606812]
[1738851690667,0.03601547,197.95,197.89,13.75606812]
[1738851693368,0.03601547,197.95,197.86,13.75606812]
[1738851694066,5.0513,197.92,197.86,13.75606812]
[1738851694367,1.5012,197.96,197.86,13.75606812]
[1738851694569,5.089101,197.91,197.83,13.75606812]
[1738851695465,0.037601,197.91,197.83,13.75606812]
[1738851696869,5.089101,197.91,197.83,13.75606812]
[1738851697168,5.089101,197.91,197.78,4.78]
[1738851697169,0.037601,197.91,197.86,13.75606812]
[1738851697669,0.03407348,197.9,197.86,13.75606812]
[1738851698360,0.03407348,197.9,197.83,13.75606812]
[1738851698563,1.4956,197.95,197.83,13.75606812]
[1738851698770,0.03796376,197.88,197.83,13.75606812]
[1738851700660,0.03796376,197.88,197.8,13.75606812]
[1738851701870,5.09026376,197.88,197.8,13.75606812]
[1738851702076,13.79403188,197.88,197.77,13.75606812]
[1738851702575,5.0531,197.85,197.77,13.75606812]
[1738851702972,0.03429966,197.83,197.77,13.75606812]
[1738851703172,5.08789966,197.83,197.77,13.75606812]
[1738851703568,0.03429966,197.83,197.77,13.75606812]
[1738851703769,0.03429966,197.83,197.74,13.75606812]
[1738851704076,5.0541,197.81,197.74,13.75606812]
[1738851705279,5.0539,197.82,197.74,13.75606812]
[1738851705977,0.03429966,197.83,197.8,13.75606812]
[1738851706280,1.5703,197.92,197.8,13.75606812]
[1738851706479,5.0515,197.91,197.71,0.5371]
[1738851706679,0.0383299,197.88,197.72,0.91082862]
[1738851706879,5.0515,197.91,197.72,0.91082862]
[1738851707081,5.0515,197.91,197.84,13.75606812]
[1738851707478,0.03263556,197.89,197.84,13.75606812]
[1738851708184,0.03263556,197.89,197.81,13.75606812]
[1738851708478,13.75606812,197.88,197.75,13.75606812]
[1738851708781,1.67125963,197.87,197.75,13.75606812]
[1738851709080,1.6389,197.87,197.75,13.75606812]
[1738851709282,0.03215322,197.83,197.75,13.75606812]
[1738851709481,0.03215322,197.83,197.78,13.75606812]
[1738851709684,1.5938,197.97,197.8,13.75606812]
[1738851709882,5.0513,197.92,197.86,13.75606812]
[1738851710083,1.5851,197.96,197.86,13.75606812]
[1738851710486,5.0511,197.93,197.86,13.75606812]
[1738851710674,20.62832539,198.01,197.86,22.04601068]
[1738851710875,0.03515504,197.91,197.89,22.04601068]
[1738851711075,20.62832539,198.01,197.89,22.04601068]
[1738851711276,0.03576751,197.92,197.89,22.04601068]
[1738851711480,20.62832539,198.01,197.89,22.04601068]
[1738851711676,0.03751044,197.92,197.89,22.04601068]
[1738851711981,5.0499,197.98,197.93,0.03471408]
[1738851712178,0.03677111,197.92,197.89,22.07903896]
[1738851712485,0.03266782,197.95,197.89,22.07903896]
[1738851714490,0.03266782,197.95,197.92,22.04601068]
[1738851714693,22.04601068,198.09,197.92,22.04601068]
[1738851714985,4.7556,198.1,197.9,22.58291068]
[1738851715194,5.0469,198.09,197.96,22.04601068]
[1738851715382,4.7556,198.1,197.96,22.04601068]
[1738851715687,3.1595,198.1,197.96,22.04601068]
[1738851715890,25.20551068,198.1,197.94,4.66]
[1738851716092,0.03781857,198.05,198.01,0.03685452]
[1738851716287,5.0487,198.03,198.01,0.03685452]
[1738851716790,0.03781857,198.05,198.01,0.03685452]
[1738851717089,5.0487,198.02,198.01,0.03685452]
[1738851717888,5.0485,198.03,198.01,0.03685452]
[1738851718589,0.03781857,198.05,198.01,0.03685452]
[1738851723894,5.0484,198.04,198.01,0.03685452]
[1738851724094,0.03781857,198.05,198.01,0.03685452]
[1738851724497,5.0487,198.02,198.01,0.03685452]
[1738851725294,0.03781857,198.05,198.01,0.03685452]
[1738851725693,5.0484,198.04,198.01,0.03685452]
[1738851725894,0.03781857,198.05,198.01,0.03685452]
[1738851726094,0.03781857,198.05,197.9,22.58291068]
[1738851726595,22.04601068,198.07,197.9,22.58291068]
[1738851726798,25.20551068,198.1,197.93,22.04601068]
[1738851727197,5.0489,198.02,198.0,0.03052738]
[1738851727498,22.04601068,198.07,197.9,22.58291068]
[1738851727691,22.04601068,198.07,197.82,192.0]
[1738851727692,1.6292,198.02,197.87,22.04601068]
[1738851727897,1.5728,198.01,197.87,22.04601068]
[1738851728592,0.03671596,197.96,197.87,22.04601068]